{"text_format":"3","workbook":"xlsx","n_sheets":3,"sheets":["Ewidencja przebiegu pojazdu","Dane ewidencji","obliczenia"],"not_rendered":{"charts":1,"defined_names":17},"read":"whole","date_system":"1900"}

{"sheet":"Ewidencja przebiegu pojazdu","index":0,"n_rows":29,"n_cols":5,"rows_kept":29,"merged":[[0,1,1,5]]}
[null,"EWIDENCJA PRZEBIEGU POJAZDU"]
{"$rows_empty":9}
[null,null,"KILOMETRY",null,"ŁĄCZNA"]
[null,null,"DO ROZLICZENIA",null,"KWOTA ZWROTU"]
[]
[]
[]
[]
[null,null,"2012-05-01",null,"2012-05-10"]
[]
[null,null,"OKRES",null,"OKRES"]
[null,null,"POCZĄTEK",null,"KONIEC"]
[]
[]
[]
[]
[]
[null,null,54,null,{"v":9800,"d":"9,800"}]
[]
[null,null,"KWOTA ZWROTU",null,"STAN LICZNIKA"]
[null,null,"Stawka/km",null,"PRZY POPRZEDNIM TANKOWANIU"]

{"sheet":"Dane ewidencji","index":1,"n_rows":19,"n_cols":15,"rows_kept":19,"merged":[[0,1,1,5]]}
[null,"EWIDENCJA PRZEBIEGU POJAZDU"]
[{"$nulls":14}," "]
[]
[]
[null,"DATA","DZIAŁANIE","STAN LICZNIKA 1","LOKALIZACJA","STAN LICZNIKA 2","CEL","ZWROT","LITRY","KOSZT","DO ROZLICZENIA","km/l","STAWKA/KM","UWAGI"]
[null,"2012-05-01","Wyjazd",{"v":10123,"d":"10,123"},"Firma Stokrotka ul. Główna",{"v":10130,"d":"10,130"},null,null,15.56,{"v":64.11,"d":"64.11 zł"},{"$f":"kilometry","v":7},{"$f":"IF(OR(LEN(dane[[#This Row],[STAN LICZNIKA 2]]),dane[[#This Row],[STAN LICZNIKA 1]]=\"\"),\"\",IFERROR(dane[[#This Row],[DO ROZLICZENIA]]/dane[[#This Row],[LITRY]],\"\"))","v":""},{"$f":"IF(dane[[#This Row],[km/l]]=\"\",\"\",100*dane[[#This Row],[KOSZT]]/dane[[#This Row],[DO ROZLICZENIA]])","v":""}]
[null,"2012-05-01","Wyjazd",{"v":10130,"d":"10,130"},"Biuro",{"v":10200,"d":"10,200"},"ul. Wiśniowa","Tak",null,"",{"$f":"kilometry","v":70},{"$f":"IF(OR(LEN(dane[[#This Row],[STAN LICZNIKA 2]]),dane[[#This Row],[STAN LICZNIKA 1]]=\"\"),\"\",IFERROR(dane[[#This Row],[DO ROZLICZENIA]]/dane[[#This Row],[LITRY]],\"\"))","v":""},{"$f":"IF(dane[[#This Row],[km/l]]=\"\",\"\",100*dane[[#This Row],[KOSZT]]/dane[[#This Row],[DO ROZLICZENIA]])","v":""}]
[null,"2012-05-01","Wyjazd",{"v":10200,"d":"10,200"},"Somonino",{"v":10285,"d":"10,285"},"Biuro","Tak",null,"",{"$f":"kilometry","v":85},{"$f":"IF(OR(LEN(dane[[#This Row],[STAN LICZNIKA 2]]),dane[[#This Row],[STAN LICZNIKA 1]]=\"\"),\"\",IFERROR(dane[[#This Row],[DO ROZLICZENIA]]/dane[[#This Row],[LITRY]],\"\"))","v":""},{"$f":"IF(dane[[#This Row],[km/l]]=\"\",\"\",100*dane[[#This Row],[KOSZT]]/dane[[#This Row],[DO ROZLICZENIA]])","v":""}]
[null,"2012-05-02","Wyjazd",{"v":10285,"d":"10,285"},"Biuro",{"v":10450,"d":"10,450"},"Odrzewice","Tak",null,"",{"$f":"kilometry","v":165},{"$f":"IF(OR(LEN(dane[[#This Row],[STAN LICZNIKA 2]]),dane[[#This Row],[STAN LICZNIKA 1]]=\"\"),\"\",IFERROR(dane[[#This Row],[DO ROZLICZENIA]]/dane[[#This Row],[LITRY]],\"\"))","v":""},{"$f":"IF(dane[[#This Row],[km/l]]=\"\",\"\",100*dane[[#This Row],[KOSZT]]/dane[[#This Row],[DO ROZLICZENIA]])","v":""}]
[null,"2012-05-02","Paliwo",{"v":10450,"d":"10,450"},"Shell",{"$nulls":3},{"v":11.2,"d":"11.20"},{"v":55.42,"d":"55.42 zł"},{"$f":"kilometry","v":650},{"$f":"IF(OR(LEN(dane[[#This Row],[STAN LICZNIKA 2]]),dane[[#This Row],[STAN LICZNIKA 1]]=\"\"),\"\",IFERROR(dane[[#This Row],[DO ROZLICZENIA]]/dane[[#This Row],[LITRY]],\"\"))","v":{"v":58.03571428571429,"d":"58.0"}},{"$f":"IF(dane[[#This Row],[km/l]]=\"\",\"\",100*dane[[#This Row],[KOSZT]]/dane[[#This Row],[DO ROZLICZENIA]])","v":{"v":8.526153846153846,"d":"8.5"}}]
[null,"2012-05-02","Wyjazd",{"v":10500,"d":"10,500"},"Odrzewice",{"v":10518,"d":"10,518"},"Biuro","Tak",null,"",{"$f":"kilometry","v":18},{"$f":"IF(OR(LEN(dane[[#This Row],[STAN LICZNIKA 2]]),dane[[#This Row],[STAN LICZNIKA 1]]=\"\"),\"\",IFERROR(dane[[#This Row],[DO ROZLICZENIA]]/dane[[#This Row],[LITRY]],\"\"))","v":""},{"$f":"IF(dane[[#This Row],[km/l]]=\"\",\"\",100*dane[[#This Row],[KOSZT]]/dane[[#This Row],[DO ROZLICZENIA]])","v":""}]
[null,"2012-05-03","Wyjazd",{"v":10518,"d":"10,518"},"Biuro",{"v":10745,"d":"10,745"},"Biuro","Tak",null,"",{"$f":"kilometry","v":227},{"$f":"IF(OR(LEN(dane[[#This Row],[STAN LICZNIKA 2]]),dane[[#This Row],[STAN LICZNIKA 1]]=\"\"),\"\",IFERROR(dane[[#This Row],[DO ROZLICZENIA]]/dane[[#This Row],[LITRY]],\"\"))","v":""},{"$f":"IF(dane[[#This Row],[km/l]]=\"\",\"\",100*dane[[#This Row],[KOSZT]]/dane[[#This Row],[DO ROZLICZENIA]])","v":""}]
[null,"2012-05-04","Paliwo",{"v":10745,"d":"10,745"},"Firma Stokrotka ul. Główna",{"$nulls":3},{"v":16.6,"d":"16.60"},{"v":69.24,"d":"69.24 zł"},{"$f":"kilometry","v":295},{"$f":"IF(OR(LEN(dane[[#This Row],[STAN LICZNIKA 2]]),dane[[#This Row],[STAN LICZNIKA 1]]=\"\"),\"\",IFERROR(dane[[#This Row],[DO ROZLICZENIA]]/dane[[#This Row],[LITRY]],\"\"))","v":{"v":17.771084337349397,"d":"17.8"}},{"$f":"IF(dane[[#This Row],[km/l]]=\"\",\"\",100*dane[[#This Row],[KOSZT]]/dane[[#This Row],[DO ROZLICZENIA]])","v":{"v":23.471186440677965,"d":"23.5"}}]
[null,"2012-05-04","Wyjazd",{"v":10745,"d":"10,745"},"Biuro",{"v":10800,"d":"10,800"},"Witno","Tak",null,"",{"$f":"kilometry","v":55},{"$f":"IF(OR(LEN(dane[[#This Row],[STAN LICZNIKA 2]]),dane[[#This Row],[STAN LICZNIKA 1]]=\"\"),\"\",IFERROR(dane[[#This Row],[DO ROZLICZENIA]]/dane[[#This Row],[LITRY]],\"\"))","v":""},{"$f":"IF(dane[[#This Row],[km/l]]=\"\",\"\",100*dane[[#This Row],[KOSZT]]/dane[[#This Row],[DO ROZLICZENIA]])","v":""}]
[null,"2012-05-04","Wyjazd",{"v":10800,"d":"10,800"},"Witno",{"v":10875,"d":"10,875"},"Biuro","Tak",null,"",{"$f":"kilometry","v":75},{"$f":"IF(OR(LEN(dane[[#This Row],[STAN LICZNIKA 2]]),dane[[#This Row],[STAN LICZNIKA 1]]=\"\"),\"\",IFERROR(dane[[#This Row],[DO ROZLICZENIA]]/dane[[#This Row],[LITRY]],\"\"))","v":""},{"$f":"IF(dane[[#This Row],[km/l]]=\"\",\"\",100*dane[[#This Row],[KOSZT]]/dane[[#This Row],[DO ROZLICZENIA]])","v":""}]
[null,"2012-05-07","Wyjazd",{"v":10875,"d":"10,875"},"Biuro",{"v":10921,"d":"10,921"},"ul. Wiśniowa","Tak",null,"",{"$f":"kilometry","v":46},{"$f":"IF(OR(LEN(dane[[#This Row],[STAN LICZNIKA 2]]),dane[[#This Row],[STAN LICZNIKA 1]]=\"\"),\"\",IFERROR(dane[[#This Row],[DO ROZLICZENIA]]/dane[[#This Row],[LITRY]],\"\"))","v":""},{"$f":"IF(dane[[#This Row],[km/l]]=\"\",\"\",100*dane[[#This Row],[KOSZT]]/dane[[#This Row],[DO ROZLICZENIA]])","v":""}]
[null,"2012-05-07","Wyjazd",{"v":10921,"d":"10,921"},"Somonino",{"v":10969,"d":"10,969"},"Biuro","Tak",null,"",{"$f":"kilometry","v":48},{"$f":"IF(OR(LEN(dane[[#This Row],[STAN LICZNIKA 2]]),dane[[#This Row],[STAN LICZNIKA 1]]=\"\"),\"\",IFERROR(dane[[#This Row],[DO ROZLICZENIA]]/dane[[#This Row],[LITRY]],\"\"))","v":""},{"$f":"IF(dane[[#This Row],[km/l]]=\"\",\"\",100*dane[[#This Row],[KOSZT]]/dane[[#This Row],[DO ROZLICZENIA]])","v":""}]
[null,"2012-05-09","Wyjazd",{"v":10969,"d":"10,969"},"Biuro",{"v":11000,"d":"11,000"},"Dobrzyno","Tak",null,"",{"$f":"kilometry","v":31},{"$f":"IF(OR(LEN(dane[[#This Row],[STAN LICZNIKA 2]]),dane[[#This Row],[STAN LICZNIKA 1]]=\"\"),\"\",IFERROR(dane[[#This Row],[DO ROZLICZENIA]]/dane[[#This Row],[LITRY]],\"\"))","v":""},{"$f":"IF(dane[[#This Row],[km/l]]=\"\",\"\",100*dane[[#This Row],[KOSZT]]/dane[[#This Row],[DO ROZLICZENIA]])","v":""}]
[null,"2012-05-09","Wyjazd",{"v":11000,"d":"11,000"},"Dobrzyno",{"v":11100,"d":"11,100"},"Dom","Nie",null,"",{"$f":"kilometry","v":100},{"$f":"IF(OR(LEN(dane[[#This Row],[STAN LICZNIKA 2]]),dane[[#This Row],[STAN LICZNIKA 1]]=\"\"),\"\",IFERROR(dane[[#This Row],[DO ROZLICZENIA]]/dane[[#This Row],[LITRY]],\"\"))","v":""},{"$f":"IF(dane[[#This Row],[km/l]]=\"\",\"\",100*dane[[#This Row],[KOSZT]]/dane[[#This Row],[DO ROZLICZENIA]])","v":""}]

{"sheet":"obliczenia","index":2,"n_rows":69,"n_cols":13,"rows_kept":69,"hidden":true}
["*** Ten arkusz pozostanie ukryty ***"]
[]
[]
[]
[]
[{"$nulls":8},{"$f":"OFFSET(I9,,Druga_oś=\"Koszt paliwa\")","v":"Stawka/km"}]
[{"$nulls":12},2]
[{"$nulls":7},"Wyjazd","Paliwo","Paliwo",null,"Druga oś:",{"$f":"REPT(\"km/l\",M7=1)&REPT(\"Koszt paliwa\",M7=2)","v":"Koszt paliwa"}]
[{"$nulls":7},"Przebyte kilometry","km/l","Stawka/km"]
[null,null,"Kilometry do rozliczenia:",{"$f":"SUMIFS(dane[DO ROZLICZENIA],dane[ZWROT],\"Tak\",dane[DATA],\">=\"&Początek_okresu,dane[DATA],\"<=\"&Koniec_okresu)","v":820},null,1,{"$f":"Początek_okresu","v":"2012-05-01"},{"$f":"SUMIFS(dane[DO ROZLICZENIA],dane[DATA],G10,dane[DZIAŁANIE],$H$8)","v":162},{"$f":"IFERROR(AVERAGEIFS(dane[km/l],dane[DATA],G10,dane[DZIAŁANIE],$I$8),NA())","v":{"$error":"#N/A"}},{"$f":"IFERROR(AVERAGEIFS(dane[STAWKA/KM],dane[DATA],G10,dane[DZIAŁANIE],$J$8),NA())","v":{"$error":"#N/A"}}]
[null,null,"Łączny zwrot wydatków:",{"$f":"D10*Zwrot_za_kilometr/100","v":{"v":442.8,"d":"442.80 zł"}},null,2,{"$f":"G10+1","v":"2012-05-02"},{"$f":"SUMIFS(dane[DO ROZLICZENIA],dane[DATA],G11,dane[DZIAŁANIE],$H$8)","v":183},{"$f":"IFERROR(AVERAGEIFS(dane[km/l],dane[DATA],G11,dane[DZIAŁANIE],$I$8),NA())","v":{"v":58.03571428571429,"d":"58.0"}},{"$f":"IFERROR(AVERAGEIFS(dane[STAWKA/KM],dane[DATA],G11,dane[DZIAŁANIE],$J$8),NA())","v":{"v":8.526153846153846,"d":"8.5"}}]
[{"$nulls":5},3,"2012-05-03",{"$f":"SUMIFS(dane[DO ROZLICZENIA],dane[DATA],G12,dane[DZIAŁANIE],$H$8)","v":227},{"$f":"IFERROR(AVERAGEIFS(dane[km/l],dane[DATA],G12,dane[DZIAŁANIE],$I$8),NA())","v":{"$error":"#N/A"}},{"$f":"IFERROR(AVERAGEIFS(dane[STAWKA/KM],dane[DATA],G12,dane[DZIAŁANIE],$J$8),NA())","v":{"$error":"#N/A"}}]
[{"$nulls":5},4,"2012-05-04",{"$f":"SUMIFS(dane[DO ROZLICZENIA],dane[DATA],G13,dane[DZIAŁANIE],$H$8)","v":130},{"$f":"IFERROR(AVERAGEIFS(dane[km/l],dane[DATA],G13,dane[DZIAŁANIE],$I$8),NA())","v":{"v":17.771084337349397,"d":"17.8"}},{"$f":"IFERROR(AVERAGEIFS(dane[STAWKA/KM],dane[DATA],G13,dane[DZIAŁANIE],$J$8),NA())","v":{"v":23.471186440677965,"d":"23.5"}}]
[{"$nulls":5},5,"2012-05-05",{"$f":"SUMIFS(dane[DO ROZLICZENIA],dane[DATA],G14,dane[DZIAŁANIE],$H$8)","v":0},{"$f":"IFERROR(AVERAGEIFS(dane[km/l],dane[DATA],G14,dane[DZIAŁANIE],$I$8),NA())","v":{"$error":"#N/A"}},{"$f":"IFERROR(AVERAGEIFS(dane[STAWKA/KM],dane[DATA],G14,dane[DZIAŁANIE],$J$8),NA())","v":{"$error":"#N/A"}}]
[{"$nulls":5},6,"2012-05-06",{"$f":"SUMIFS(dane[DO ROZLICZENIA],dane[DATA],G15,dane[DZIAŁANIE],$H$8)","v":0},{"$f":"IFERROR(AVERAGEIFS(dane[km/l],dane[DATA],G15,dane[DZIAŁANIE],$I$8),NA())","v":{"$error":"#N/A"}},{"$f":"IFERROR(AVERAGEIFS(dane[STAWKA/KM],dane[DATA],G15,dane[DZIAŁANIE],$J$8),NA())","v":{"$error":"#N/A"}}]
[{"$nulls":5},7,"2012-05-07",{"$f":"SUMIFS(dane[DO ROZLICZENIA],dane[DATA],G16,dane[DZIAŁANIE],$H$8)","v":94},{"$f":"IFERROR(AVERAGEIFS(dane[km/l],dane[DATA],G16,dane[DZIAŁANIE],$I$8),NA())","v":{"$error":"#N/A"}},{"$f":"IFERROR(AVERAGEIFS(dane[STAWKA/KM],dane[DATA],G16,dane[DZIAŁANIE],$J$8),NA())","v":{"$error":"#N/A"}}]
[{"$nulls":5},8,"2012-05-08",{"$f":"SUMIFS(dane[DO ROZLICZENIA],dane[DATA],G17,dane[DZIAŁANIE],$H$8)","v":0},{"$f":"IFERROR(AVERAGEIFS(dane[km/l],dane[DATA],G17,dane[DZIAŁANIE],$I$8),NA())","v":{"$error":"#N/A"}},{"$f":"IFERROR(AVERAGEIFS(dane[STAWKA/KM],dane[DATA],G17,dane[DZIAŁANIE],$J$8),NA())","v":{"$error":"#N/A"}}]
[{"$nulls":5},9,"2012-05-09",{"$f":"SUMIFS(dane[DO ROZLICZENIA],dane[DATA],G18,dane[DZIAŁANIE],$H$8)","v":131},{"$f":"IFERROR(AVERAGEIFS(dane[km/l],dane[DATA],G18,dane[DZIAŁANIE],$I$8),NA())","v":{"$error":"#N/A"}},{"$f":"IFERROR(AVERAGEIFS(dane[STAWKA/KM],dane[DATA],G18,dane[DZIAŁANIE],$J$8),NA())","v":{"$error":"#N/A"}}]
[{"$nulls":5},10,"2012-05-10",{"$f":"SUMIFS(dane[DO ROZLICZENIA],dane[DATA],G19,dane[DZIAŁANIE],$H$8)","v":0},{"$f":"IFERROR(AVERAGEIFS(dane[km/l],dane[DATA],G19,dane[DZIAŁANIE],$I$8),NA())","v":{"$error":"#N/A"}},{"$f":"IFERROR(AVERAGEIFS(dane[STAWKA/KM],dane[DATA],G19,dane[DZIAŁANIE],$J$8),NA())","v":{"$error":"#N/A"}}]
[{"$nulls":5},11,"2012-05-11",{"$f":"SUMIFS(dane[DO ROZLICZENIA],dane[DATA],G20,dane[DZIAŁANIE],$H$8)","v":0},{"$f":"IFERROR(AVERAGEIFS(dane[km/l],dane[DATA],G20,dane[DZIAŁANIE],$I$8),NA())","v":{"$error":"#N/A"}},{"$f":"IFERROR(AVERAGEIFS(dane[STAWKA/KM],dane[DATA],G20,dane[DZIAŁANIE],$J$8),NA())","v":{"$error":"#N/A"}}]
[{"$nulls":5},12,"2012-05-12",{"$f":"SUMIFS(dane[DO ROZLICZENIA],dane[DATA],G21,dane[DZIAŁANIE],$H$8)","v":0},{"$f":"IFERROR(AVERAGEIFS(dane[km/l],dane[DATA],G21,dane[DZIAŁANIE],$I$8),NA())","v":{"$error":"#N/A"}},{"$f":"IFERROR(AVERAGEIFS(dane[STAWKA/KM],dane[DATA],G21,dane[DZIAŁANIE],$J$8),NA())","v":{"$error":"#N/A"}}]
[{"$nulls":5},13,"2012-05-13",{"$f":"SUMIFS(dane[DO ROZLICZENIA],dane[DATA],G22,dane[DZIAŁANIE],$H$8)","v":0},{"$f":"IFERROR(AVERAGEIFS(dane[km/l],dane[DATA],G22,dane[DZIAŁANIE],$I$8),NA())","v":{"$error":"#N/A"}},{"$f":"IFERROR(AVERAGEIFS(dane[STAWKA/KM],dane[DATA],G22,dane[DZIAŁANIE],$J$8),NA())","v":{"$error":"#N/A"}}]
[{"$nulls":5},14,"2012-05-14",{"$f":"SUMIFS(dane[DO ROZLICZENIA],dane[DATA],G23,dane[DZIAŁANIE],$H$8)","v":0},{"$f":"IFERROR(AVERAGEIFS(dane[km/l],dane[DATA],G23,dane[DZIAŁANIE],$I$8),NA())","v":{"$error":"#N/A"}},{"$f":"IFERROR(AVERAGEIFS(dane[STAWKA/KM],dane[DATA],G23,dane[DZIAŁANIE],$J$8),NA())","v":{"$error":"#N/A"}}]
[{"$nulls":5},15,"2012-05-15",{"$f":"SUMIFS(dane[DO ROZLICZENIA],dane[DATA],G24,dane[DZIAŁANIE],$H$8)","v":0},{"$f":"IFERROR(AVERAGEIFS(dane[km/l],dane[DATA],G24,dane[DZIAŁANIE],$I$8),NA())","v":{"$error":"#N/A"}},{"$f":"IFERROR(AVERAGEIFS(dane[STAWKA/KM],dane[DATA],G24,dane[DZIAŁANIE],$J$8),NA())","v":{"$error":"#N/A"}}]
[{"$nulls":5},16,"2012-05-16",{"$f":"SUMIFS(dane[DO ROZLICZENIA],dane[DATA],G25,dane[DZIAŁANIE],$H$8)","v":0},{"$f":"IFERROR(AVERAGEIFS(dane[km/l],dane[DATA],G25,dane[DZIAŁANIE],$I$8),NA())","v":{"$error":"#N/A"}},{"$f":"IFERROR(AVERAGEIFS(dane[STAWKA/KM],dane[DATA],G25,dane[DZIAŁANIE],$J$8),NA())","v":{"$error":"#N/A"}}]
[{"$nulls":5},17,"2012-05-17",{"$f":"SUMIFS(dane[DO ROZLICZENIA],dane[DATA],G26,dane[DZIAŁANIE],$H$8)","v":0},{"$f":"IFERROR(AVERAGEIFS(dane[km/l],dane[DATA],G26,dane[DZIAŁANIE],$I$8),NA())","v":{"$error":"#N/A"}},{"$f":"IFERROR(AVERAGEIFS(dane[STAWKA/KM],dane[DATA],G26,dane[DZIAŁANIE],$J$8),NA())","v":{"$error":"#N/A"}}]
[{"$nulls":5},18,"2012-05-18",{"$f":"SUMIFS(dane[DO ROZLICZENIA],dane[DATA],G27,dane[DZIAŁANIE],$H$8)","v":0},{"$f":"IFERROR(AVERAGEIFS(dane[km/l],dane[DATA],G27,dane[DZIAŁANIE],$I$8),NA())","v":{"$error":"#N/A"}},{"$f":"IFERROR(AVERAGEIFS(dane[STAWKA/KM],dane[DATA],G27,dane[DZIAŁANIE],$J$8),NA())","v":{"$error":"#N/A"}}]
[{"$nulls":5},19,"2012-05-19",{"$f":"SUMIFS(dane[DO ROZLICZENIA],dane[DATA],G28,dane[DZIAŁANIE],$H$8)","v":0},{"$f":"IFERROR(AVERAGEIFS(dane[km/l],dane[DATA],G28,dane[DZIAŁANIE],$I$8),NA())","v":{"$error":"#N/A"}},{"$f":"IFERROR(AVERAGEIFS(dane[STAWKA/KM],dane[DATA],G28,dane[DZIAŁANIE],$J$8),NA())","v":{"$error":"#N/A"}}]
[{"$nulls":5},20,"2012-05-20",{"$f":"SUMIFS(dane[DO ROZLICZENIA],dane[DATA],G29,dane[DZIAŁANIE],$H$8)","v":0},{"$f":"IFERROR(AVERAGEIFS(dane[km/l],dane[DATA],G29,dane[DZIAŁANIE],$I$8),NA())","v":{"$error":"#N/A"}},{"$f":"IFERROR(AVERAGEIFS(dane[STAWKA/KM],dane[DATA],G29,dane[DZIAŁANIE],$J$8),NA())","v":{"$error":"#N/A"}}]
[{"$nulls":5},21,"2012-05-21",{"$f":"SUMIFS(dane[DO ROZLICZENIA],dane[DATA],G30,dane[DZIAŁANIE],$H$8)","v":0},{"$f":"IFERROR(AVERAGEIFS(dane[km/l],dane[DATA],G30,dane[DZIAŁANIE],$I$8),NA())","v":{"$error":"#N/A"}},{"$f":"IFERROR(AVERAGEIFS(dane[STAWKA/KM],dane[DATA],G30,dane[DZIAŁANIE],$J$8),NA())","v":{"$error":"#N/A"}}]
[{"$nulls":5},22,"2012-05-22",{"$f":"SUMIFS(dane[DO ROZLICZENIA],dane[DATA],G31,dane[DZIAŁANIE],$H$8)","v":0},{"$f":"IFERROR(AVERAGEIFS(dane[km/l],dane[DATA],G31,dane[DZIAŁANIE],$I$8),NA())","v":{"$error":"#N/A"}},{"$f":"IFERROR(AVERAGEIFS(dane[STAWKA/KM],dane[DATA],G31,dane[DZIAŁANIE],$J$8),NA())","v":{"$error":"#N/A"}}]
[{"$nulls":5},23,"2012-05-23",{"$f":"SUMIFS(dane[DO ROZLICZENIA],dane[DATA],G32,dane[DZIAŁANIE],$H$8)","v":0},{"$f":"IFERROR(AVERAGEIFS(dane[km/l],dane[DATA],G32,dane[DZIAŁANIE],$I$8),NA())","v":{"$error":"#N/A"}},{"$f":"IFERROR(AVERAGEIFS(dane[STAWKA/KM],dane[DATA],G32,dane[DZIAŁANIE],$J$8),NA())","v":{"$error":"#N/A"}}]
[{"$nulls":5},24,"2012-05-24",{"$f":"SUMIFS(dane[DO ROZLICZENIA],dane[DATA],G33,dane[DZIAŁANIE],$H$8)","v":0},{"$f":"IFERROR(AVERAGEIFS(dane[km/l],dane[DATA],G33,dane[DZIAŁANIE],$I$8),NA())","v":{"$error":"#N/A"}},{"$f":"IFERROR(AVERAGEIFS(dane[STAWKA/KM],dane[DATA],G33,dane[DZIAŁANIE],$J$8),NA())","v":{"$error":"#N/A"}}]
[{"$nulls":5},25,"2012-05-25",{"$f":"SUMIFS(dane[DO ROZLICZENIA],dane[DATA],G34,dane[DZIAŁANIE],$H$8)","v":0},{"$f":"IFERROR(AVERAGEIFS(dane[km/l],dane[DATA],G34,dane[DZIAŁANIE],$I$8),NA())","v":{"$error":"#N/A"}},{"$f":"IFERROR(AVERAGEIFS(dane[STAWKA/KM],dane[DATA],G34,dane[DZIAŁANIE],$J$8),NA())","v":{"$error":"#N/A"}}]
[{"$nulls":5},26,"2012-05-26",{"$f":"SUMIFS(dane[DO ROZLICZENIA],dane[DATA],G35,dane[DZIAŁANIE],$H$8)","v":0},{"$f":"IFERROR(AVERAGEIFS(dane[km/l],dane[DATA],G35,dane[DZIAŁANIE],$I$8),NA())","v":{"$error":"#N/A"}},{"$f":"IFERROR(AVERAGEIFS(dane[STAWKA/KM],dane[DATA],G35,dane[DZIAŁANIE],$J$8),NA())","v":{"$error":"#N/A"}}]
[{"$nulls":5},27,"2012-05-27",{"$f":"SUMIFS(dane[DO ROZLICZENIA],dane[DATA],G36,dane[DZIAŁANIE],$H$8)","v":0},{"$f":"IFERROR(AVERAGEIFS(dane[km/l],dane[DATA],G36,dane[DZIAŁANIE],$I$8),NA())","v":{"$error":"#N/A"}},{"$f":"IFERROR(AVERAGEIFS(dane[STAWKA/KM],dane[DATA],G36,dane[DZIAŁANIE],$J$8),NA())","v":{"$error":"#N/A"}}]
[{"$nulls":5},28,"2012-05-28",{"$f":"SUMIFS(dane[DO ROZLICZENIA],dane[DATA],G37,dane[DZIAŁANIE],$H$8)","v":0},{"$f":"IFERROR(AVERAGEIFS(dane[km/l],dane[DATA],G37,dane[DZIAŁANIE],$I$8),NA())","v":{"$error":"#N/A"}},{"$f":"IFERROR(AVERAGEIFS(dane[STAWKA/KM],dane[DATA],G37,dane[DZIAŁANIE],$J$8),NA())","v":{"$error":"#N/A"}}]
[{"$nulls":5},29,"2012-05-29",{"$f":"SUMIFS(dane[DO ROZLICZENIA],dane[DATA],G38,dane[DZIAŁANIE],$H$8)","v":0},{"$f":"IFERROR(AVERAGEIFS(dane[km/l],dane[DATA],G38,dane[DZIAŁANIE],$I$8),NA())","v":{"$error":"#N/A"}},{"$f":"IFERROR(AVERAGEIFS(dane[STAWKA/KM],dane[DATA],G38,dane[DZIAŁANIE],$J$8),NA())","v":{"$error":"#N/A"}}]
[{"$nulls":5},30,"2012-05-30",{"$f":"SUMIFS(dane[DO ROZLICZENIA],dane[DATA],G39,dane[DZIAŁANIE],$H$8)","v":0},{"$f":"IFERROR(AVERAGEIFS(dane[km/l],dane[DATA],G39,dane[DZIAŁANIE],$I$8),NA())","v":{"$error":"#N/A"}},{"$f":"IFERROR(AVERAGEIFS(dane[STAWKA/KM],dane[DATA],G39,dane[DZIAŁANIE],$J$8),NA())","v":{"$error":"#N/A"}}]
[{"$nulls":5},31,"2012-05-31",{"$f":"SUMIFS(dane[DO ROZLICZENIA],dane[DATA],G40,dane[DZIAŁANIE],$H$8)","v":0},{"$f":"IFERROR(AVERAGEIFS(dane[km/l],dane[DATA],G40,dane[DZIAŁANIE],$I$8),NA())","v":{"$error":"#N/A"}},{"$f":"IFERROR(AVERAGEIFS(dane[STAWKA/KM],dane[DATA],G40,dane[DZIAŁANIE],$J$8),NA())","v":{"$error":"#N/A"}}]
[{"$nulls":5},32,"2012-06-01",{"$f":"SUMIFS(dane[DO ROZLICZENIA],dane[DATA],G41,dane[DZIAŁANIE],$H$8)","v":0},{"$f":"IFERROR(AVERAGEIFS(dane[km/l],dane[DATA],G41,dane[DZIAŁANIE],$I$8),NA())","v":{"$error":"#N/A"}},{"$f":"IFERROR(AVERAGEIFS(dane[STAWKA/KM],dane[DATA],G41,dane[DZIAŁANIE],$J$8),NA())","v":{"$error":"#N/A"}}]
[{"$nulls":5},33,"2012-06-02",{"$f":"SUMIFS(dane[DO ROZLICZENIA],dane[DATA],G42,dane[DZIAŁANIE],$H$8)","v":0},{"$f":"IFERROR(AVERAGEIFS(dane[km/l],dane[DATA],G42,dane[DZIAŁANIE],$I$8),NA())","v":{"$error":"#N/A"}},{"$f":"IFERROR(AVERAGEIFS(dane[STAWKA/KM],dane[DATA],G42,dane[DZIAŁANIE],$J$8),NA())","v":{"$error":"#N/A"}}]
[{"$nulls":5},34,{"$f":"G42+1","v":"2012-06-03"},{"$f":"SUMIFS(dane[DO ROZLICZENIA],dane[DATA],G43,dane[DZIAŁANIE],$H$8)","v":0},{"$f":"IFERROR(AVERAGEIFS(dane[km/l],dane[DATA],G43,dane[DZIAŁANIE],$I$8),NA())","v":{"$error":"#N/A"}},{"$f":"IFERROR(AVERAGEIFS(dane[STAWKA/KM],dane[DATA],G43,dane[DZIAŁANIE],$J$8),NA())","v":{"$error":"#N/A"}}]
[{"$nulls":5},35,"2012-06-04",{"$f":"SUMIFS(dane[DO ROZLICZENIA],dane[DATA],G44,dane[DZIAŁANIE],$H$8)","v":0},{"$f":"IFERROR(AVERAGEIFS(dane[km/l],dane[DATA],G44,dane[DZIAŁANIE],$I$8),NA())","v":{"$error":"#N/A"}},{"$f":"IFERROR(AVERAGEIFS(dane[STAWKA/KM],dane[DATA],G44,dane[DZIAŁANIE],$J$8),NA())","v":{"$error":"#N/A"}}]
[{"$nulls":5},36,"2012-06-05",{"$f":"SUMIFS(dane[DO ROZLICZENIA],dane[DATA],G45,dane[DZIAŁANIE],$H$8)","v":0},{"$f":"IFERROR(AVERAGEIFS(dane[km/l],dane[DATA],G45,dane[DZIAŁANIE],$I$8),NA())","v":{"$error":"#N/A"}},{"$f":"IFERROR(AVERAGEIFS(dane[STAWKA/KM],dane[DATA],G45,dane[DZIAŁANIE],$J$8),NA())","v":{"$error":"#N/A"}}]
[{"$nulls":5},37,"2012-06-06",{"$f":"SUMIFS(dane[DO ROZLICZENIA],dane[DATA],G46,dane[DZIAŁANIE],$H$8)","v":0},{"$f":"IFERROR(AVERAGEIFS(dane[km/l],dane[DATA],G46,dane[DZIAŁANIE],$I$8),NA())","v":{"$error":"#N/A"}},{"$f":"IFERROR(AVERAGEIFS(dane[STAWKA/KM],dane[DATA],G46,dane[DZIAŁANIE],$J$8),NA())","v":{"$error":"#N/A"}}]
[{"$nulls":5},38,"2012-06-07",{"$f":"SUMIFS(dane[DO ROZLICZENIA],dane[DATA],G47,dane[DZIAŁANIE],$H$8)","v":0},{"$f":"IFERROR(AVERAGEIFS(dane[km/l],dane[DATA],G47,dane[DZIAŁANIE],$I$8),NA())","v":{"$error":"#N/A"}},{"$f":"IFERROR(AVERAGEIFS(dane[STAWKA/KM],dane[DATA],G47,dane[DZIAŁANIE],$J$8),NA())","v":{"$error":"#N/A"}}]
[{"$nulls":5},39,"2012-06-08",{"$f":"SUMIFS(dane[DO ROZLICZENIA],dane[DATA],G48,dane[DZIAŁANIE],$H$8)","v":0},{"$f":"IFERROR(AVERAGEIFS(dane[km/l],dane[DATA],G48,dane[DZIAŁANIE],$I$8),NA())","v":{"$error":"#N/A"}},{"$f":"IFERROR(AVERAGEIFS(dane[STAWKA/KM],dane[DATA],G48,dane[DZIAŁANIE],$J$8),NA())","v":{"$error":"#N/A"}}]
[{"$nulls":5},40,"2012-06-09",{"$f":"SUMIFS(dane[DO ROZLICZENIA],dane[DATA],G49,dane[DZIAŁANIE],$H$8)","v":0},{"$f":"IFERROR(AVERAGEIFS(dane[km/l],dane[DATA],G49,dane[DZIAŁANIE],$I$8),NA())","v":{"$error":"#N/A"}},{"$f":"IFERROR(AVERAGEIFS(dane[STAWKA/KM],dane[DATA],G49,dane[DZIAŁANIE],$J$8),NA())","v":{"$error":"#N/A"}}]
[{"$nulls":5},41,"2012-06-10",{"$f":"SUMIFS(dane[DO ROZLICZENIA],dane[DATA],G50,dane[DZIAŁANIE],$H$8)","v":0},{"$f":"IFERROR(AVERAGEIFS(dane[km/l],dane[DATA],G50,dane[DZIAŁANIE],$I$8),NA())","v":{"$error":"#N/A"}},{"$f":"IFERROR(AVERAGEIFS(dane[STAWKA/KM],dane[DATA],G50,dane[DZIAŁANIE],$J$8),NA())","v":{"$error":"#N/A"}}]
[{"$nulls":5},42,"2012-06-11",{"$f":"SUMIFS(dane[DO ROZLICZENIA],dane[DATA],G51,dane[DZIAŁANIE],$H$8)","v":0},{"$f":"IFERROR(AVERAGEIFS(dane[km/l],dane[DATA],G51,dane[DZIAŁANIE],$I$8),NA())","v":{"$error":"#N/A"}},{"$f":"IFERROR(AVERAGEIFS(dane[STAWKA/KM],dane[DATA],G51,dane[DZIAŁANIE],$J$8),NA())","v":{"$error":"#N/A"}}]
[{"$nulls":5},43,"2012-06-12",{"$f":"SUMIFS(dane[DO ROZLICZENIA],dane[DATA],G52,dane[DZIAŁANIE],$H$8)","v":0},{"$f":"IFERROR(AVERAGEIFS(dane[km/l],dane[DATA],G52,dane[DZIAŁANIE],$I$8),NA())","v":{"$error":"#N/A"}},{"$f":"IFERROR(AVERAGEIFS(dane[STAWKA/KM],dane[DATA],G52,dane[DZIAŁANIE],$J$8),NA())","v":{"$error":"#N/A"}}]
[{"$nulls":5},44,"2012-06-13",{"$f":"SUMIFS(dane[DO ROZLICZENIA],dane[DATA],G53,dane[DZIAŁANIE],$H$8)","v":0},{"$f":"IFERROR(AVERAGEIFS(dane[km/l],dane[DATA],G53,dane[DZIAŁANIE],$I$8),NA())","v":{"$error":"#N/A"}},{"$f":"IFERROR(AVERAGEIFS(dane[STAWKA/KM],dane[DATA],G53,dane[DZIAŁANIE],$J$8),NA())","v":{"$error":"#N/A"}}]
[{"$nulls":5},45,"2012-06-14",{"$f":"SUMIFS(dane[DO ROZLICZENIA],dane[DATA],G54,dane[DZIAŁANIE],$H$8)","v":0},{"$f":"IFERROR(AVERAGEIFS(dane[km/l],dane[DATA],G54,dane[DZIAŁANIE],$I$8),NA())","v":{"$error":"#N/A"}},{"$f":"IFERROR(AVERAGEIFS(dane[STAWKA/KM],dane[DATA],G54,dane[DZIAŁANIE],$J$8),NA())","v":{"$error":"#N/A"}}]
[{"$nulls":5},46,"2012-06-15",{"$f":"SUMIFS(dane[DO ROZLICZENIA],dane[DATA],G55,dane[DZIAŁANIE],$H$8)","v":0},{"$f":"IFERROR(AVERAGEIFS(dane[km/l],dane[DATA],G55,dane[DZIAŁANIE],$I$8),NA())","v":{"$error":"#N/A"}},{"$f":"IFERROR(AVERAGEIFS(dane[STAWKA/KM],dane[DATA],G55,dane[DZIAŁANIE],$J$8),NA())","v":{"$error":"#N/A"}}]
[{"$nulls":5},47,"2012-06-16",{"$f":"SUMIFS(dane[DO ROZLICZENIA],dane[DATA],G56,dane[DZIAŁANIE],$H$8)","v":0},{"$f":"IFERROR(AVERAGEIFS(dane[km/l],dane[DATA],G56,dane[DZIAŁANIE],$I$8),NA())","v":{"$error":"#N/A"}},{"$f":"IFERROR(AVERAGEIFS(dane[STAWKA/KM],dane[DATA],G56,dane[DZIAŁANIE],$J$8),NA())","v":{"$error":"#N/A"}}]
[{"$nulls":5},48,"2012-06-17",{"$f":"SUMIFS(dane[DO ROZLICZENIA],dane[DATA],G57,dane[DZIAŁANIE],$H$8)","v":0},{"$f":"IFERROR(AVERAGEIFS(dane[km/l],dane[DATA],G57,dane[DZIAŁANIE],$I$8),NA())","v":{"$error":"#N/A"}},{"$f":"IFERROR(AVERAGEIFS(dane[STAWKA/KM],dane[DATA],G57,dane[DZIAŁANIE],$J$8),NA())","v":{"$error":"#N/A"}}]
[{"$nulls":5},49,"2012-06-18",{"$f":"SUMIFS(dane[DO ROZLICZENIA],dane[DATA],G58,dane[DZIAŁANIE],$H$8)","v":0},{"$f":"IFERROR(AVERAGEIFS(dane[km/l],dane[DATA],G58,dane[DZIAŁANIE],$I$8),NA())","v":{"$error":"#N/A"}},{"$f":"IFERROR(AVERAGEIFS(dane[STAWKA/KM],dane[DATA],G58,dane[DZIAŁANIE],$J$8),NA())","v":{"$error":"#N/A"}}]
[{"$nulls":5},50,"2012-06-19",{"$f":"SUMIFS(dane[DO ROZLICZENIA],dane[DATA],G59,dane[DZIAŁANIE],$H$8)","v":0},{"$f":"IFERROR(AVERAGEIFS(dane[km/l],dane[DATA],G59,dane[DZIAŁANIE],$I$8),NA())","v":{"$error":"#N/A"}},{"$f":"IFERROR(AVERAGEIFS(dane[STAWKA/KM],dane[DATA],G59,dane[DZIAŁANIE],$J$8),NA())","v":{"$error":"#N/A"}}]
[{"$nulls":5},51,"2012-06-20",{"$f":"SUMIFS(dane[DO ROZLICZENIA],dane[DATA],G60,dane[DZIAŁANIE],$H$8)","v":0},{"$f":"IFERROR(AVERAGEIFS(dane[km/l],dane[DATA],G60,dane[DZIAŁANIE],$I$8),NA())","v":{"$error":"#N/A"}},{"$f":"IFERROR(AVERAGEIFS(dane[STAWKA/KM],dane[DATA],G60,dane[DZIAŁANIE],$J$8),NA())","v":{"$error":"#N/A"}}]
[{"$nulls":5},52,"2012-06-21",{"$f":"SUMIFS(dane[DO ROZLICZENIA],dane[DATA],G61,dane[DZIAŁANIE],$H$8)","v":0},{"$f":"IFERROR(AVERAGEIFS(dane[km/l],dane[DATA],G61,dane[DZIAŁANIE],$I$8),NA())","v":{"$error":"#N/A"}},{"$f":"IFERROR(AVERAGEIFS(dane[STAWKA/KM],dane[DATA],G61,dane[DZIAŁANIE],$J$8),NA())","v":{"$error":"#N/A"}}]
[{"$nulls":5},53,"2012-06-22",{"$f":"SUMIFS(dane[DO ROZLICZENIA],dane[DATA],G62,dane[DZIAŁANIE],$H$8)","v":0},{"$f":"IFERROR(AVERAGEIFS(dane[km/l],dane[DATA],G62,dane[DZIAŁANIE],$I$8),NA())","v":{"$error":"#N/A"}},{"$f":"IFERROR(AVERAGEIFS(dane[STAWKA/KM],dane[DATA],G62,dane[DZIAŁANIE],$J$8),NA())","v":{"$error":"#N/A"}}]
[{"$nulls":5},54,"2012-06-23",{"$f":"SUMIFS(dane[DO ROZLICZENIA],dane[DATA],G63,dane[DZIAŁANIE],$H$8)","v":0},{"$f":"IFERROR(AVERAGEIFS(dane[km/l],dane[DATA],G63,dane[DZIAŁANIE],$I$8),NA())","v":{"$error":"#N/A"}},{"$f":"IFERROR(AVERAGEIFS(dane[STAWKA/KM],dane[DATA],G63,dane[DZIAŁANIE],$J$8),NA())","v":{"$error":"#N/A"}}]
[{"$nulls":5},55,"2012-06-24",{"$f":"SUMIFS(dane[DO ROZLICZENIA],dane[DATA],G64,dane[DZIAŁANIE],$H$8)","v":0},{"$f":"IFERROR(AVERAGEIFS(dane[km/l],dane[DATA],G64,dane[DZIAŁANIE],$I$8),NA())","v":{"$error":"#N/A"}},{"$f":"IFERROR(AVERAGEIFS(dane[STAWKA/KM],dane[DATA],G64,dane[DZIAŁANIE],$J$8),NA())","v":{"$error":"#N/A"}}]
[{"$nulls":5},56,"2012-06-25",{"$f":"SUMIFS(dane[DO ROZLICZENIA],dane[DATA],G65,dane[DZIAŁANIE],$H$8)","v":0},{"$f":"IFERROR(AVERAGEIFS(dane[km/l],dane[DATA],G65,dane[DZIAŁANIE],$I$8),NA())","v":{"$error":"#N/A"}},{"$f":"IFERROR(AVERAGEIFS(dane[STAWKA/KM],dane[DATA],G65,dane[DZIAŁANIE],$J$8),NA())","v":{"$error":"#N/A"}}]
[{"$nulls":5},57,"2012-06-26",{"$f":"SUMIFS(dane[DO ROZLICZENIA],dane[DATA],G66,dane[DZIAŁANIE],$H$8)","v":0},{"$f":"IFERROR(AVERAGEIFS(dane[km/l],dane[DATA],G66,dane[DZIAŁANIE],$I$8),NA())","v":{"$error":"#N/A"}},{"$f":"IFERROR(AVERAGEIFS(dane[STAWKA/KM],dane[DATA],G66,dane[DZIAŁANIE],$J$8),NA())","v":{"$error":"#N/A"}}]
[{"$nulls":5},58,"2012-06-27",{"$f":"SUMIFS(dane[DO ROZLICZENIA],dane[DATA],G67,dane[DZIAŁANIE],$H$8)","v":0},{"$f":"IFERROR(AVERAGEIFS(dane[km/l],dane[DATA],G67,dane[DZIAŁANIE],$I$8),NA())","v":{"$error":"#N/A"}},{"$f":"IFERROR(AVERAGEIFS(dane[STAWKA/KM],dane[DATA],G67,dane[DZIAŁANIE],$J$8),NA())","v":{"$error":"#N/A"}}]
[{"$nulls":5},59,"2012-06-28",{"$f":"SUMIFS(dane[DO ROZLICZENIA],dane[DATA],G68,dane[DZIAŁANIE],$H$8)","v":0},{"$f":"IFERROR(AVERAGEIFS(dane[km/l],dane[DATA],G68,dane[DZIAŁANIE],$I$8),NA())","v":{"$error":"#N/A"}},{"$f":"IFERROR(AVERAGEIFS(dane[STAWKA/KM],dane[DATA],G68,dane[DZIAŁANIE],$J$8),NA())","v":{"$error":"#N/A"}}]
[{"$nulls":5},60,"2012-06-29",{"$f":"SUMIFS(dane[DO ROZLICZENIA],dane[DATA],G69,dane[DZIAŁANIE],$H$8)","v":0},{"$f":"IFERROR(AVERAGEIFS(dane[km/l],dane[DATA],G69,dane[DZIAŁANIE],$I$8),NA())","v":{"$error":"#N/A"}},{"$f":"IFERROR(AVERAGEIFS(dane[STAWKA/KM],dane[DATA],G69,dane[DZIAŁANIE],$J$8),NA())","v":{"$error":"#N/A"}}]